Cogmind - Beta 16 @@@ ROGUE MODE // 2025.11.22 @ 20:43:27 // Winter2019/RPGLIKE Player: Jaegerpls Result: Destroyed by P-80 Master with Gamma Rifle Performance ------------- Evolutions (8) 4000 Regions Visited (25) 5000 Robots Destroyed (813) 4065 Value Destroyed (40604) 40604 Prototype IDs (70) 1400 Alien Tech Used (1) 200 Bonus (23468) 23468 TOTAL SCORE: 78737 Bonus ------- Triggered High Security 1000 High Alert Combat Kills 17094 Destroyed Unchained 1000 Aligned with FarCom 300 Met Data Miner 300 Met Zhirov 300 Met Warlord at Base 500 MAIN.C Attacked Warlord 500 Warlord Defense Kills 1252 Met Warlord at Research 2000 Scanned by Researcher 500 Friendly Fire -1278 Cogmind --------- Core Integrity 0/850 Matter 585/600 Energy 20/700 System Corruption 1% Temperature Cool (60) Movement Treading (225) Ox1 Location -2/Research Parts ------- > --- POWER (2) -------- Vortex Chain Reactor > --- PROPULSION (4) --- Heavy Siege Treads Advanced Heavy Siege Treads > --- UTILITY (13) ----- Advanced Signal Interpreter Advanced Salvage Targeting Computer Improved Armor Integrity Analyzer Improved Kinecellerator Advanced Weapon Cycler Makeshift Transmission Jammer Heavy Reflective Plating Graphene Brace QV-33N's Drone Shield Ghost Barrier Advanced System Restoration Module Long-range Tractor Beam > --- WEAPON (4) ------- XL Autogun Array > --- INVENTORY (3) ---- Protomatter-73 Advanced Terrain Scanner Advanced Point Defense System Peak State ------------ > --- POWER ------------ Vortex Chain Reactor > --- PROPULSION ------- Heavy Siege Treads Advanced Heavy Siege Treads > --- UTILITY ---------- Advanced Signal Interpreter Advanced Salvage Targeting Computer Improved Armor Integrity Analyzer Improved Kinecellerator Advanced Weapon Cycler Makeshift Transmission Jammer Heavy Reflective Plating Graphene Brace QV-33N's Drone Shield Ghost Barrier Advanced System Restoration Module Long-range Tractor Beam > --- WEAPON ----------- XL Autogun Array > --- INVENTORY -------- Protomatter Advanced Terrain Scanner Advanced Point Defense System [Rating: 174] Favorites ----------- Power Vortex Chain Reactor Engine Light Angular Momentum Engine Power Core Light Nuclear Core Reactor Vortex Chain Reactor Propulsion Heavy Siege Treads Treads Heavy Siege Treads Flight Unit Cooled VTOL Module Utility Improved Signal Interpreter Device Advanced Terrain Scanner Processor Improved Signal Interpreter Hackware Ghost Barrier Protection Heavy Reflective Plating Weapon XL Autogun Array Energy Cannon Beam Cannon Ballistic Gun XL Autogun Array Build | -11 -10 -10 -10 -9 -8 -8 -8 -8 -6 -6 -6 -6 -5 -5 -5 -5 -5 -4 -4 -4 -4 -4 -3 -3 -2 ------- Run | Yrd Mat Min Exi Min Mat Sto Rec Scr Fac Low Low Dat Pro Fac Upp Upp War Pro Fac Upp Upp Zhi Pro Res Res Slots Evolved 19 | 4 2 . 1 1 5 1 1 . 1 . . . . 2 . . . . . . . . . 1 . Power 1 | . . . . . 1 . . . . . . . . . . . . . . . . . . . . Propulsion 3 | 1 . . . . 2 . . . . . . . . . . . . . . . . . . . . Utility 12 | 2 1 . . 1 2 1 1 . 1 . . . . 2 . . . . . . . . . 1 . Weapon 3 | 1 1 . 1 . . . . . . . . . . . . . . . . . . . . . . Parts Attached 118 | 7 8 . 1 2 21 5 4 3 17 . 2 . 1 17 1 . 5 1 5 1 1 2 . 10 4 Power 14 | 1 1 . . . 3 . . . 5 . . . . 3 . . 1 . . . . . . . . Engine 3 | 1 . . . . 1 . . . 1 . . . . . . . . . . . . . . . . Core 9 | . 1 . . . 2 . . . 4 . . . . 2 . . . . . . . . . . . Reactor 2 | . . . . . . . . . . . . . . 1 . . 1 . . . . . . . . Propulsion 22 | 2 . . . . 7 1 1 . 5 . . . 1 3 . . . . . . . . . 1 1 Treads 18 | 2 . . . . 3 1 1 . 5 . . . 1 3 . . . . . . . . . 1 1 Leg . | . . . . . . . . . . . . . . . . . . . . . . . . . . Wheel . | . . . . . . . . . . . . . . . . . . . . . . . . . . Hover . | . . . . . . . . . . . . . . . . . . . . . . . . . . Flight 4 | . . . . . 4 . . . . . . . . . . . . . . . . . . . . Utility 75 | 2 3 . . 2 11 4 3 3 7 . 2 . . 11 1 . 4 1 5 1 1 2 . 9 3 Device 44 | 2 1 . . 1 7 . . 1 5 . 1 . . 7 1 . 2 1 4 1 1 1 . 7 1 Storage . | . . . . . . . . . . . . . . . . . . . . . . . . . . Processor 17 | . 1 . . 1 . 2 . 2 1 . 1 . . 3 . . 1 . 1 . . . . 2 2 Hackware 2 | . . . . . 1 . . . . . . . . . . . 1 . . . . . . . . Protection 12 | . 1 . . . 3 2 3 . 1 . . . . 1 . . . . . . . 1 . . . Artifact . | . . . . . . . . . . . . . . . . . . . . . . . . . . Weapon 7 | 2 4 . 1 . . . . . . . . . . . . . . . . . . . . . . Energy Gun . | . . . . . . . . . . . . . . . . . . . . . . . . . . Energy Cannon 1 | . 1 . . . . . . . . . . . . . . . . . . . . . . . . Ballistic Gun 6 | 2 3 . 1 . . . . . . . . . . . . . . . . . . . . . . Ballistic Cannon . | . . . . . . . . . . . . . . . . . . . . . . . . . . Launcher . | . . . . . . . . . . . . . . . . . . . . . . . . . . Special Weapon . | . . . . . . . . . . . . . . . . . . . . . . . . . . Impact Weapon . | . . . . . . . . . . . . . . . . . . . . . . . . . . Slashing Weapon . | . . . . . . . . . . . . . . . . . . . . . . . . . . Piercing Weapon . | . . . . . . . . . . . . . . . . . . . . . . . . . . Special Melee Weapon . | . . . . . . . . . . . . . . . . . . . . . . . . . . Unidentified Prototypes 22 | . . . . . 1 . . . 1 . . . . 3 . . 5 1 2 . . 2 . 5 2 Parts Lost 1 | . . . . . . . . . . . . . . . . . . . . . . . . . 1 Power . | . . . . . . . . . . . . . . . . . . . . . . . . . . Propulsion . | . . . . . . . . . . . . . . . . . . . . . . . . . . Utility 1 | . . . . . . . . . . . . . . . . . . . . . . . . . 1 Weapon . | . . . . . . . . . . . . . . . . . . . . . . . . . . Highest Loss Streak 1 | . . . . . . . . . . . . . . . . . . . . . . . . . 1 To Critical Strikes . | . . . . . . . . . . . . . . . . . . . . . . . . . . Average Backups 1 | . 1 2 1 . . . . 1 1 1 2 2 2 1 1 1 1 1 2 2 2 2 2 2 2 Power . | . . . . . . . . . . . . . . . . . . . . . . . . . . Propulsion . | . . . . . . . . . . . . . . . . . . . . . . . . . . Utility 1 | . . . . . . . . 1 1 1 1 1 1 . 1 1 1 1 2 2 2 2 2 2 2 Weapon . | . . 2 1 . . . . . . . 1 1 1 . . . . . . . . . . . . Tool/Special . | . . . . . . . . . . . . . . . . . . . . . . . . . . Unused Backups 9 | . . . 2 . . 1 . . . 1 . . . 4 . . . . . . . . . . 1 Power . | . . . . . . . . . . . . . . . . . . . . . . . . . . Propulsion . | . . . . . . . . . . . . . . . . . . . . . . . . . . Utility 6 | . . . . . . 1 . . . 1 . . . 3 . . . . . . . . . . 1 Weapon 3 | . . . 2 . . . . . . . . . . 1 . . . . . . . . . . . Tool/Special . | . . . . . . . . . . . . . . . . . . . . . . . . . . Average Slot Usage (%) 75 | . 98 100 87 72 77 79 80 77 78 80 80 80 80 73 72 72 69 68 67 68 68 68 68 68 68 Core 4 | . 10 10 9 9 10 5 5 5 4 10 10 10 10 8 4 4 1 . . . . . . . . Reactor 1 | . . . . . . . . . . . . . . . 4 4 3 4 4 4 4 4 4 4 4 Treads 14 | . 23 20 19 18 17 22 21 21 20 20 20 20 20 12 9 9 9 9 9 9 9 9 9 8 8 Device 25 | . 17 20 19 18 18 16 15 15 22 25 22 20 20 22 29 31 28 30 30 31 31 31 31 30 29 Processor 13 | . 9 10 9 9 12 16 15 20 15 15 17 20 20 18 15 13 13 9 9 9 9 9 9 11 13 Hackware 1 | . . . . . 1 . . . . . . . . . . . 2 4 4 4 4 4 4 4 4 Protection 5 | . 8 10 9 9 6 5 10 5 5 5 5 5 5 4 4 4 4 4 4 4 4 3 4 4 4 Ballistic Gun 6 | . 25 30 20 9 5 5 5 5 5 5 5 5 5 4 4 4 4 4 4 4 4 4 4 4 4 Peak Build Rating 174 | 9 18 18 48 50 77 78 83 85 104 104 105 105 106 134 134 134 148 149 153 151 152 152 152 167 174 Average Rating 112 | 5 14 18 31 48 63 74 80 84 93 103 104 105 105 122 133 134 140 147 150 150 151 151 152 159 167 On Entrance 99 | . 9 18 18 48 50 70 78 83 85 104 103 105 105 105 134 134 134 146 148 151 150 152 152 152 164 Avg Prop Armor Cover (%) 7 | . . . . . . . . . . . . . . . . . . . . . . . . . 7 Naked Turns . | . . . . . . . . . . . . . . . . . . . . . . . . . . Heaviest Build 95 | 7 23 23 29 29 42 48 57 56 63 63 63 61 61 75 76 76 81 81 81 85 95 95 95 95 93 Greatest Support 155 | 40 40 40 40 40 94 88 88 85 111 111 111 111 117 145 145 145 145 145 145 145 145 145 145 145 155 Greatest Overweight (x) 1 | 1 . . . . 1 . . . . . . . . . . . . . . . . . . . 1 Average Overweight (x) . | . . . . . . . . . . . . . . . . . . . . . . . . . . Largest Inventory Capacity 3 | 1 2 2 2 2 2 2 2 2 2 2 3 3 3 3 3 3 3 3 3 3 3 3 3 3 3 Average Capacity 2 | 1 1 2 2 2 2 2 2 2 2 2 2 3 3 3 3 3 3 3 3 3 3 3 3 3 3 Most Carried 3 | . 2 2 2 1 2 2 2 2 2 2 3 3 3 3 3 3 3 3 3 3 3 3 3 3 3 Average Carried 2 | . 1 2 1 . . 1 2 1 1 1 2 3 2 2 2 2 2 2 2 3 3 3 3 2 2 Final Capacity 3 | 1 2 2 2 2 2 2 2 2 2 2 3 3 3 3 3 3 3 3 3 3 3 3 3 3 3 Final Carried 3 | . 2 2 . . 2 2 2 2 2 2 3 3 2 3 2 3 3 3 3 3 3 3 3 3 3 Class Distribution -------------------- 41% | Hacker-Skirmisher 23% | Gunner 15% | Skirmisher 13% | Hacker-Gunner 3% | Mutant Dominant Class ---------------- Mutant | -10/Materials Gunner | -10/Mines Gunner | -10/Exiles Skirmisher | -9/Mines Skirmisher | -8/Materials Skirmisher | -8/Storage Skirmisher | -8/Recycling Gunner | -8/Scraptown Gunner | -6/Factory Gunner | -6/Lower Caves Gunner | -6/Lower Caves Gunner | -6/Data Miner Gunner | -5/Proximity Caves Hacker-Skirmisher | -5/Factory Hacker-Gunner | -5/Upper Caves Hacker-Gunner | -5/Upper Caves Hacker-Gunner | -5/Warlord Hacker-Skirmisher | -4/Proximity Caves Hacker-Skirmisher | -4/Factory Hacker-Skirmisher | -4/Upper Caves Hacker-Skirmisher | -4/Upper Caves Hacker-Skirmisher | -4/Zhirov Hacker-Skirmisher | -3/Proximity Caves Hacker-Skirmisher | -3/Research Hacker-Skirmisher | -2/Research Resources | -11 -10 -10 -10 -9 -8 -8 -8 -8 -6 -6 -6 -6 -5 -5 -5 -5 -5 -4 -4 -4 -4 -4 -3 -3 -2 ----------- Run | Yrd Mat Min Exi Min Mat Sto Rec Scr Fac Low Low Dat Pro Fac Upp Upp War Pro Fac Upp Upp Zhi Pro Res Res Matter Collected 26789 | 334 1022 180 . 185 2262 1053 226 54 1497 921 440 . 565 2200 715 630 285 675 2880 441 489 . 965 4840 3930 Remotely 25795 | 136 292 180 . 185 2249 1053 201 54 1497 921 440 . 565 2200 715 630 285 675 2865 441 489 . 965 4827 3930 Salvage Created 39351 | 289 662 102 . 46 1985 2150 474 . 1622 891 947 . 1227 3466 2185 1046 444 869 4465 815 471 . 1553 8054 5588 Parts 2086 | 30 49 15 . 3 111 87 28 . 92 60 34 . 46 197 56 48 14 41 221 46 39 . 87 438 344 Haulers Intercepted 23 | . 2 . . . 4 5 . . 3 . . . . 6 . . . . 3 . . . . . . Recyclers Shooed 7 | . . . . . . . . . . . . . . 2 . . . . 3 . . . . 2 . Parts Field Recycled . | . . . . . . . . . . . . . . . . . . . . . . . . . . Retrieved Matter . | . . . . . . . . . . . . . . . . . . . . . . . . . . Parts Self-Destructed 435 | . . . . . . . . . . 49 34 . 46 . 52 45 . 41 . 46 35 . 87 . . Prevented 1 | . . . . . . . . . . . . . . . 1 . . . . . . . . . . Parts Restored . | . . . . . . . . . . . . . . . . . . . . . . . . . . Kills | -11 -10 -10 -10 -9 -8 -8 -8 -8 -6 -6 -6 -6 -5 -5 -5 -5 -5 -4 -4 -4 -4 -4 -3 -3 -2 ------- Run | Yrd Mat Min Exi Min Mat Sto Rec Scr Fac Low Low Dat Pro Fac Upp Upp War Pro Fac Upp Upp Zhi Pro Res Res Combat Hostiles Destroyed 660 | . 14 7 . 5 35 26 6 . 24 17 17 . 19 45 19 21 12 22 63 17 20 . 35 136 100 Guns 660 | . 14 7 . 5 35 26 6 . 24 17 17 . 19 45 19 21 12 22 63 17 20 . 35 136 100 Classes Destroyed 27 | 3 6 . . 1 6 1 . . 1 1 . . . 1 . . 2 . . 1 . . 1 2 1 Worker 36 | 1 6 . . 1 4 3 . . 2 . . . . 10 . . . . 6 . . . . 3 . Builder 21 | . 1 . . . 3 1 . . 2 . . . . 3 . . . . 3 . . . . 8 . Tunneler 12 | 9 . . . . . . . . 1 . . . . 1 . . . . . . . . . 1 . Hauler 23 | . 2 . . . 4 5 . . 3 . . . . 6 . . . . 3 . . . . . . Recycler 8 | 1 . . . . . 3 2 . 1 . . . . . . . . . 1 . . . . . . Mechanic 4 | . . . . . 1 . . . . . . . 1 . . . . . . . . . . . 2 Operator 12 | . 1 . . . 3 . . . 1 . . . . 2 . . . . 1 . . . . 3 1 Drone 5 | . . . . . . . . . . . . . . . . . . . . . . . 2 3 . Watcher 33 | . 1 . . . 4 2 . . 1 . . . . 9 . . . . 9 . . . . 6 1 Swarmer 147 | . 6 6 . . 9 1 . . 1 3 5 . 1 5 6 11 3 10 9 3 14 . 19 26 9 Saboteur 10 | . . . . . . . . . . . . . . . . . 1 . 1 . . . . 6 2 Grunt 231 | . 8 1 . . 14 13 . . 11 9 5 . 11 18 10 4 2 2 25 12 2 . 7 49 28 Brawler 33 | . . . . . 2 2 1 . 1 2 1 . 2 . . 2 1 2 3 . 2 . . 5 7 Duelist 25 | . . . . . 2 . . . 1 2 4 . 1 1 . 1 2 . 2 . . . . 5 4 Protector 14 | . . . . . 1 . 1 . . . . . . 1 . . . . 3 . . . . 3 5 Sentry 65 | . . . . . 5 9 4 . 2 1 2 . 2 4 2 2 . 2 5 1 1 . 2 16 5 Demolisher 4 | . . . . . . . . . . . . . . . . . . . . . . . . . 4 Specialist 4 | . . . . . 2 . . . . . . . . 2 . . . . . . . . . . . Hunter 37 | . . . . . . 1 . . 2 2 . . 2 5 1 1 2 2 8 . . . 2 2 7 Programmer 61 | . . . . . . . . . 6 . . . . 8 . . . 4 8 . . . 2 16 17 Heavy 3 | . . . . . . . . . . . . . . 1 . . . . 1 . . . . 1 . Behemoth 4 | . . . . . . . . . . . . . . . . . . . . 1 . . 1 1 1 Investigator 2 | . . . . . . . . . . . . . . . . . . . . . . . . 1 1 Striker 7 | . . . . . . . . . . . . . . . . . 1 . . . . . . 1 5 Executioner 7 | . . . . . . . . . . . . . . . . . . . . . . . . 1 6 Assembled 5 | . . . . 5 . . . . . . . . . . . . . . . . . . . . . Savage 1 | . . . . . . . . . . . . . . . . 1 . . . . . . . . . Mutant 2 | . . . . . . . . . . 1 . . . . . . . . . . 1 . . . . Best Kill Streak 36 | 6 8 3 . 5 6 7 5 . 7 6 7 . 9 14 11 9 9 6 20 7 10 . 13 36 26 Combat Bots Only 35 | . 4 3 . 4 5 4 5 . 7 6 7 . 8 8 11 9 9 6 10 7 10 . 13 35 24 Max Kills in Single Turn 5 | 2 2 1 . 2 2 3 2 . 3 1 1 . 2 5 2 2 1 2 2 2 2 . 1 3 2 Gunslinging 1 | . 1 . . . . . . . . . . . . . . . . . . . . . . . . Exploded . | . . . . . . . . . . . . . . . . . . . . . . . . . . Melee . | . . . . . . . . . . . . . . . . . . . . . . . . . . Uniques/NPCs Destroyed 2 | . . . . . . 1 . . . . . . . . . . . . . . . . . 1 . 01-MTF (-8/Storage) QV-33N (-3/Research) Combat | -11 -10 -10 -10 -9 -8 -8 -8 -8 -6 -6 -6 -6 -5 -5 -5 -5 -5 -4 -4 -4 -4 -4 -3 -3 -2 -------- Run | Yrd Mat Min Exi Min Mat Sto Rec Scr Fac Low Low Dat Pro Fac Upp Upp War Pro Fac Upp Upp Zhi Pro Res Res Hostile Shots Fired 1440 | . 79 24 . 4 61 39 . . 70 25 20 . 32 95 40 24 25 28 132 34 28 . 38 258 384 Missed 432 | . 21 7 . 2 25 9 . . 32 9 7 . 9 34 10 7 9 6 34 9 10 . 10 74 108 Hits 1008 | . 58 17 . 2 36 30 . . 38 16 13 . 23 61 30 17 16 22 98 25 18 . 28 184 276 Melee 16 | . . . . . . 2 . . . . . . . . . . . . 3 . . . . 1 10 Projectile 992 | . 58 17 . 2 36 28 . . 38 16 13 . 23 61 30 17 16 22 95 25 18 . 28 183 266 AOE 4 | . . . . . . . . . . . . . . . . . . . . . . . . 1 3 Critical Strikes 48 | . . 1 . . 2 2 . . 1 . . . 3 2 . . . 1 6 . 1 . . 10 19 Actively Blocked 17 | . . . . . . . . . . . . . . . . . . . . . . . . 1 16 Part Disruptions 2 | . . . . . . . . . . . . . . 1 . . . . . . . . . . 1 Damage Taken 12437 | . 702 132 . 31 638 451 . . 417 199 144 . 350 862 356 214 193 277 1457 249 172 . 280 1915 3398 Core 8294 | . 514 102 . 20 436 342 . . 290 125 97 . 222 591 242 144 113 167 985 168 106 . 175 1229 2226 Absorbed by Shields 6810 | . . . . . . . . . 159 73 54 . 126 316 136 82 74 104 529 92 99 . 292 1842 2832 Redirected to Core 7586 | . 434 53 . 6 374 296 . . 262 114 97 . 222 581 213 134 94 146 951 168 96 . 164 1116 2065 Redirected to Shielding 21 | . . . . . 21 . . . . . . . . . . . . . . . . . . . . Ignored by Resistances 2037 | . . . . . . . . . . . . . . 66 81 30 10 8 327 116 17 . 42 631 709 Core Remaining (%) 95 | 100 . . . 73 . . . 100 . . . . 100 . . . . 100 . . . . 97 100 . Volleys Fired 1688 | 32 108 15 . 12 123 58 7 . 69 50 28 . 37 130 47 42 18 40 182 29 31 . 61 313 256 Largest 3 | 2 3 3 . 1 1 1 1 . 1 1 1 . 1 1 1 1 1 1 1 1 1 . 1 1 1 Hottest 69 | 40 69 69 . 60 60 60 60 . 60 60 60 . 60 60 60 60 60 60 60 60 60 . 60 60 60 Shots Fired 1909 | 64 260 45 . 12 125 61 10 . 69 50 28 . 37 130 47 42 18 40 182 29 31 . 61 312 256 Gun 1907 | 64 258 45 . 12 125 61 10 . 69 50 28 . 37 130 47 42 18 40 182 29 31 . 61 312 256 Cannon 2 | . 2 . . . . . . . . . . . . . . . . . . . . . . . . Launcher . | . . . . . . . . . . . . . . . . . . . . . . . . . . Special . | . . . . . . . . . . . . . . . . . . . . . . . . . . Kinetic 1907 | 64 258 45 . 12 125 61 10 . 69 50 28 . 37 130 47 42 18 40 182 29 31 . 61 312 256 Thermal 2 | . 2 . . . . . . . . . . . . . . . . . . . . . . . . Explosive . | . . . . . . . . . . . . . . . . . . . . . . . . . . Electromagnetic . | . . . . . . . . . . . . . . . . . . . . . . . . . . Robot Hit Streak 87 | 12 8 4 . 4 17 14 21 . 23 17 14 . 27 31 21 19 22 31 38 24 26 . 35 87 60 Robot Miss Streak 6 | 4 6 4 . 5 5 3 1 . 4 4 2 . 2 5 3 4 2 2 3 2 4 . 3 5 2 Penetration Max . | . . . . . . . . . . . . . . . . . . . . . . . . . . Secondary Targets 4 | . 3 1 . . . . . . . . . . . . . . . . . . . . . . . Max Gunslinging Chain 1 | . 1 1 . . . . . . . . . . . . . . . . . . . . . . . Shots Hit Robots 1551 | 43 88 13 . 8 77 54 8 . 61 46 26 . 37 125 43 41 18 39 168 29 30 . 60 290 247 Core Hits 1632 | 20 35 8 . 6 73 55 13 . 65 46 29 . 46 140 44 36 22 38 192 35 27 . 55 338 309 Critical Kills 1 | . 1 . . . . . . . . . . . . . . . . . . . . . . . . Critical Parts Destroyed . | . . . . . . . . . . . . . . . . . . . . . . . . . . Critical Strikes 1 | . 1 . . . . . . . . . . . . . . . . . . . . . . . . Destroy 1 | . 1 . . . . . . . . . . . . . . . . . . . . . . . . Melee Attacks . | . . . . . . . . . . . . . . . . . . . . . . . . . . Impact . | . . . . . . . . . . . . . . . . . . . . . . . . . . Slashing . | . . . . . . . . . . . . . . . . . . . . . . . . . . Piercing . | . . . . . . . . . . . . . . . . . . . . . . . . . . Sneak Attacks . | . . . . . . . . . . . . . . . . . . . . . . . . . . Combat Hostiles . | . . . . . . . . . . . . . . . . . . . . . . . . . . Follow-up Attacks . | . . . . . . . . . . . . . . . . . . . . . . . . . . Damage Inflicted 127829 | 364 1196 220 . 304 4388 3329 647 . 4901 3457 2099 . 3062 11019 3298 2639 1412 3164 15964 2752 2176 . 4944 29270 27224 Guns 125547 | 364 1162 220 . 304 4242 3099 504 . 4901 3457 2099 . 3062 10267 3230 2639 1412 3164 15055 2752 2176 . 4944 29270 27224 Cannons 34 | . 34 . . . . . . . . . . . . . . . . . . . . . . . . Explosions 2243 | . . . . . 141 230 143 . . . . . . 752 68 . . . 909 . . . . . . Melee . | . . . . . . . . . . . . . . . . . . . . . . . . . . Ramming 5 | . . . . . 5 . . . . . . . . . . . . . . . . . . . . Kinetic 125547 | 364 1162 220 . 304 4242 3099 504 . 4901 3457 2099 . 3062 10267 3230 2639 1412 3164 15055 2752 2176 . 4944 29270 27224 Thermal 1178 | . 34 . . . 141 . . . . . . . . 603 68 . . . 332 . . . . . . Explosive 950 | . . . . . . 230 143 . . . . . . . . . . . 577 . . . . . . Electromagnetic 149 | . . . . . . . . . . . . . . 149 . . . . . . . . . . . Impact . | . . . . . . . . . . . . . . . . . . . . . . . . . . Slashing . | . . . . . . . . . . . . . . . . . . . . . . . . . . Piercing . | . . . . . . . . . . . . . . . . . . . . . . . . . . Highest Corruption 11 | . . . . . 4 11 11 . 1 1 1 . . 2 . . . 1 1 . . . . 5 4 Average Corruption 4 | . . . . . 3 6 11 . 1 1 1 . . 1 . . . 1 1 . . . . 2 1 Corruption Purged 30 | . . . . . . . . . . . 1 . . 6 . . . 1 1 . . . . 14 7 Corruption Blocked . | . . . . . . . . . . . . . . . . . . . . . . . . . . Effects 114 | . . . . . 33 21 38 . 4 12 . . . 1 . . . . . . . . . 3 2 Message Errors 27 | . . . . . 8 4 10 . 1 4 . . . . . . . . . . . . . . . Matter Fused 25 | . . . . . 8 5 8 . 1 1 . . . . . . . . . . . . . . 2 Heat Flow Errors 13 | . . . . . 2 3 4 . 1 3 . . . . . . . . . . . . . . . Energy Discharges 20 | . . . . . 7 1 8 . 1 2 . . . . . . . . . . . . . 1 . Data Loss (minor) 12 | . . . . . 4 2 4 . . 1 . . . 1 . . . . . . . . . . . Data Loss (major) 6 | . . . . . 2 3 . . . . . . . . . . . . . . . . . 1 . Misfires 8 | . . . . . 2 3 3 . . . . . . . . . . . . . . . . . . Alerts 2 | . . . . . . . 1 . . 1 . . . . . . . . . . . . . . . Weapon Failures 1 | . . . . . . . . . . . . . . . . . . . . . . . . 1 . Overload Shots . | . . . . . . . . . . . . . . . . . . . . . . . . . . Overflow Damage 342 | . . . . . 1 . 26 . . . . . . 222 . . . . 93 . . . . . . Projectiles . | . . . . . . . . . . . . . . . . . . . . . . . . . . Explosions 342 | . . . . . 1 . 26 . . . . . . 222 . . . . 93 . . . . . . Melee . | . . . . . . . . . . . . . . . . . . . . . . . . . . Knockbacks . | . . . . . . . . . . . . . . . . . . . . . . . . . . Impact . | . . . . . . . . . . . . . . . . . . . . . . . . . . Kinetic . | . . . . . . . . . . . . . . . . . . . . . . . . . . Secondary . | . . . . . . . . . . . . . . . . . . . . . . . . . . Self-Inflicted Damage 520 | . 149 . . . 96 49 . . . . . . . 70 . . . . 156 . . . . . . Shots 13 | . 3 . . . 2 2 . . . . . . . 2 . . . . 4 . . . . . . Rammed . | . . . . . . . . . . . . . . . . . . . . . . . . . . Targets Rammed 1 | . . . . . 1 . . . . . . . . . . . . . . . . . . . . Kicked . | . . . . . . . . . . . . . . . . . . . . . . . . . . Crushed 1 | . . . . . 1 . . . . . . . . . . . . . . . . . . . . Highest Temperature 336 | . 63 28 . 165 336 230 233 . 161 196 50 . 133 66 204 244 . 85 207 99 85 . 60 207 35 Average Temperature 42 | . 14 12 . 62 77 40 70 . 22 25 14 . 34 12 47 58 . 43 63 46 35 . 33 55 24 Received Heat Transfer 1904 | . 156 . . . 225 144 . . 70 27 30 . 170 102 86 30 12 6 176 69 22 . 18 319 242 Effects 2 | . . . . . 2 . . . . . . . . . . . . . . . . . . . . Interference 2 | . . . . . 2 . . . . . . . . . . . . . . . . . . . . Siege Activations . | . . . . . . . . . . . . . . . . . . . . . . . . . . Martial Activations . | . . . . . . . . . . . . . . . . . . . . . . . . . . Shielding Activations . | . . . . . . . . . . . . . . . . . . . . . . . . . . Robots Disrupted 1 | . . . . . . . . . . . . . . 1 . . . . . . . . . . . Combat Hostiles 1 | . . . . . . . . . . . . . . 1 . . . . . . . . . . . Robots Corrupted . | . . . . . . . . . . . . . . . . . . . . . . . . . . Combat Hostiles . | . . . . . . . . . . . . . . . . . . . . . . . . . . Parts Fried 2 | . . . . . . 1 . . . . . . . . 1 . . . . . . . . . . Impact Corruptions . | . . . . . . . . . . . . . . . . . . . . . . . . . . Robots Melted . | . . . . . . . . . . . . . . . . . . . . . . . . . . Combat Hostiles . | . . . . . . . . . . . . . . . . . . . . . . . . . . Parts Melted 1 | . . . . . . . . . . . . . . . . . . . 1 . . . . . . Heat Transferred 854 | . 74 . . . 150 . . . . . . . . 350 80 . . . 200 . . . . . . Parts Sabotaged . | . . . . . . . . . . . . . . . . . . . . . . . . . . Parts Stolen . | . . . . . . . . . . . . . . . . . . . . . . . . . . Parts Stripped . | . . . . . . . . . . . . . . . . . . . . . . . . . . Power Chain Reactions . | . . . . . . . . . . . . . . . . . . . . . . . . . . Alert | -11 -10 -10 -10 -9 -8 -8 -8 -8 -6 -6 -6 -6 -5 -5 -5 -5 -5 -4 -4 -4 -4 -4 -3 -3 -2 ------- Run | Yrd Mat Min Exi Min Mat Sto Rec Scr Fac Low Low Dat Pro Fac Upp Upp War Pro Fac Upp Upp Zhi Pro Res Res Maximum Alert Level 5 | . 2 . . . 3 3 1 . 2 . . . . 4 . . . . 5 . . . . 5 5 Low Security (%) 40 | 100 69 100 . 100 13 . 84 . 74 . . . . 22 . . . . 29 . . . . 16 . Level 1 13 | . 27 . . . 5 31 15 . 9 . . . . 34 . . . . 7 . . . . 14 . Level 2 15 | . 3 . . . 77 51 . . 16 . . . . . . . . . 1 . . . . 18 . Level 3 8 | . . . . . 4 17 . . . . . . . 31 . . . . 3 . . . . 16 . Level 4 10 | . . . . . . . . . . . . . . 11 . . . . 31 . . . . 13 44 Level 5 3 | . . . . . . . . . . . . . . . . . . . 27 . . . . 1 9 High Security 6 | . . . . . . . . . . . . . . . . . . . . . . . . 18 46 Max Security . | . . . . . . . . . . . . . . . . . . . . . . . . . . Sterilizations 1 | . . . . . . . . . . . . . . . . . . . . . . . . 1 . Peak Influence 4020 | 10 411 162 . 16 772 753 263 . 471 . . . . 1357 . . . . 2586 . . . . 3265 4020 Initial 1836 | . . 156 . . 2 322 222 . . . . . . 105 . . . . . . . . . 210 1836 Average 610 | 1 137 89 . . 453 478 93 . 141 . . . . 552 . . . . 1019 . . . . 1046 1984 Influence Increases 21084 | 55 849 284 . 51 1541 929 215 . 837 375 360 . 425 2227 400 450 285 480 3284 370 410 . 730 3725 2802 Destroy 0b10 Robot/C 12700 | . 280 140 . . 680 520 100 . 480 320 340 . 380 880 380 420 240 440 1200 340 380 . 660 2600 1920 Destroy 0b10 Robot/NC 880 | 55 55 . . 5 100 70 35 . 55 15 10 . 5 160 . 10 . . 130 . . . 10 120 45 Destroy Leader 1982 | . 76 20 . . 166 134 . . 138 40 10 . 40 220 20 20 . 40 244 30 30 . 60 382 312 Allied During Kill 6 | . . . . . . . . . . . . . . . . . . . 6 . . . . . . Successful Hack 293 | . 30 . . . 51 4 17 . 75 . . . . 43 . . . . 16 . . . . 57 . Disable Machine 2430 | . 315 75 . 30 390 120 45 . 45 . . . . 450 . . . . 780 . . . . 120 60 Destroy Structure 2583 | . 78 34 . 16 154 66 18 . 44 . . . . 444 . . . . 908 . . . . 446 375 Lose Combat Pursuer 210 | . 15 15 . . . 15 . . . . . . . 30 . . 45 . . . . . . . 90 Influence Decreases 17034 | 55 448 667 18 43 785 1122 786 . 496 658 418 . 258 1052 1133 754 453 617 704 1517 858 985 417 773 2017 Entered New Map 6061 | . . 245 18 . 6 442 349 . . 127 12 . . 62 497 116 305 137 . 955 273 985 . 103 1429 Time Decay 9420 | 55 448 422 . 43 629 380 422 . 346 531 406 . 238 712 556 618 88 480 404 562 565 . 417 670 428 Lost Part 10 | . . . . . . . . . . . . . . . . . . . . . . . . . 10 Lost Ally 240 | . . . . . . . . . . . . . 20 40 80 20 60 . . . 20 . . . . Purge Threat 1303 | . . . . . 150 300 15 . 150 . . . . 238 . . . . 300 . . . . . 150 Squads Dispatched 82 | . 5 . . . 6 7 . . 13 . . . 1 15 . . . . 15 . . . . 20 . Investigation 10 | . 4 . . . . 1 . . 1 . . . . 3 . . . . . . . . . 1 . Extermination 17 | . . . . . . . . . 6 . . . . 4 . . . . 2 . . . . 5 . Reinforcement 24 | . 1 . . . 4 3 . . 3 . . . . 5 . . . . 6 . . . . 2 . Assault 23 | . . . . . 2 . . . 1 . . . 1 3 . . . . 6 . . . . 10 . Garrison 8 | . . . . . . 3 . . 2 . . . . . . . . . 1 . . . . 2 . Intercept . | . . . . . . . . . . . . . . . . . . . . . . . . . . Searches Triggered . | . . . . . . . . . . . . . . . . . . . . . . . . . . Unchained Authorized 2 | . . . . . . . . . . . . . . . . . . . 1 . . . . 1 . Construction Impeded 4 | . . . . . 1 1 . . 1 . . . . . . . . . 1 . . . . . . Haulers Reinforced 8 | . . . . . . . . . 2 . . . . 2 . . . . 3 . . . . 1 . Active Scanning Responses . | . . . . . . . . . . . . . . . . . . . . . . . . . . Cargo Convoy Interrupts 1 | . . . . . . . . . . . . . . 1 . . . . . . . . . . . Stealth | -11 -10 -10 -10 -9 -8 -8 -8 -8 -6 -6 -6 -6 -5 -5 -5 -5 -5 -4 -4 -4 -4 -4 -3 -3 -2 --------- Run | Yrd Mat Min Exi Min Mat Sto Rec Scr Fac Low Low Dat Pro Fac Upp Upp War Pro Fac Upp Upp Zhi Pro Res Res Distress Signals 24 | . 2 . . 1 2 2 . . 1 . . . . 4 . . 1 . . . . . . . 11 Communications Jammed 121 | . . . . . . . . . . . . . . . . . . . 43 . . . 1 28 49 Distress Signals 108 | . . . . . . . . . . . . . . . . . . . 39 . . . . 20 49 Times Spotted 745 | . 18 7 . 4 44 31 . . 25 16 14 . 19 57 20 16 27 17 77 16 19 . 30 148 140 Peak Tracking Total 18 | . 5 3 . 3 5 4 . . 3 5 7 . 4 5 10 3 17 4 8 4 8 . 5 9 18 Tactical Retreats 11 | . 1 1 . . . 1 . . . . . . . 2 . . 2 . . . . . . . 4 Traps | -11 -10 -10 -10 -9 -8 -8 -8 -8 -6 -6 -6 -6 -5 -5 -5 -5 -5 -4 -4 -4 -4 -4 -3 -3 -2 ------- Run | Yrd Mat Min Exi Min Mat Sto Rec Scr Fac Low Low Dat Pro Fac Upp Upp War Pro Fac Upp Upp Zhi Pro Res Res Traps Triggered 17 | . 3 . . . 3 5 . . 3 . . . . 1 . . . . . . . . . 2 . Indirectly . | . . . . . . . . . . . . . . . . . . . . . . . . . . Trap Hack Attempts . | . . . . . . . . . . . . . . . . . . . . . . . . . . Triggered . | . . . . . . . . . . . . . . . . . . . . . . . . . . Disarmed . | . . . . . . . . . . . . . . . . . . . . . . . . . . Reprogrammed . | . . . . . . . . . . . . . . . . . . . . . . . . . . Reused . | . . . . . . . . . . . . . . . . . . . . . . . . . . Traps Extracted . | . . . . . . . . . . . . . . . . . . . . . . . . . . Installed . | . . . . . . . . . . . . . . . . . . . . . . . . . . Triggered . | . . . . . . . . . . . . . . . . . . . . . . . . . . Machines | -11 -10 -10 -10 -9 -8 -8 -8 -8 -6 -6 -6 -6 -5 -5 -5 -5 -5 -4 -4 -4 -4 -4 -3 -3 -2 ---------- Run | Yrd Mat Min Exi Min Mat Sto Rec Scr Fac Low Low Dat Pro Fac Upp Upp War Pro Fac Upp Upp Zhi Pro Res Res Machines Disabled 183 | . 21 5 . 2 26 8 3 . 3 3 1 . 1 30 6 2 . 1 52 1 1 . 2 11 4 Max in Single Turn 6 | . 2 1 . 1 4 2 1 . 1 1 1 . 1 6 3 1 . 1 6 1 1 . 1 1 1 Garrison Access 8 | . . . . . 1 . . . 1 . . . . 1 . . . . 2 . . . . 2 1 Machines Repaired . | . . . . . . . . . . . . . . . . . . . . . . . . . . Machines Dismantled . | . . . . . . . . . . . . . . . . . . . . . . . . . . Machines Sabotaged . | . . . . . . . . . . . . . . . . . . . . . . . . . . Overloaded Fab Kills . | . . . . . . . . . . . . . . . . . . . . . . . . . . Hacking | -11 -10 -10 -10 -9 -8 -8 -8 -8 -6 -6 -6 -6 -5 -5 -5 -5 -5 -4 -4 -4 -4 -4 -3 -3 -2 --------- Run | Yrd Mat Min Exi Min Mat Sto Rec Scr Fac Low Low Dat Pro Fac Upp Upp War Pro Fac Upp Upp Zhi Pro Res Res Machines Accessed 107 | . 8 . 1 . 12 6 12 1 16 . 1 4 . 14 . 2 3 . 6 2 1 4 1 11 2 Terminals 51 | . 7 . . . 9 4 6 . 7 . . . . 7 . . . . 3 1 . . 1 5 1 Fabricators 5 | . . . . . . . . . 2 . . . . 3 . . . . . . . . . . . Repair Stations . | . . . . . . . . . . . . . . . . . . . . . . . . . . Recycling Units 16 | . 1 . . . 1 1 6 . 2 . . . . 2 . . . . . . . . . 3 . Scanalyzers 6 | . . . . . 1 . . . 2 . . . . 1 . . . . 1 . . . . 1 . Garrison Access 11 | . . . . . 1 1 . . 3 . . . . 1 . . . . 2 . . . . 2 1 Total Hacks 332 | . 26 . 1 . 26 14 31 8 40 . 1 33 . 54 . 2 6 . 25 7 1 17 5 30 5 Successful 209 | . 12 . 1 . 15 6 15 8 21 . 1 33 . 32 . 2 6 . 13 7 1 17 5 11 3 Failed 122 | . 14 . . . 11 8 16 . 19 . . . . 21 . . . . 12 . . . . 19 2 Catastrophic 19 | . . . . . 1 2 3 . 6 . . . . 2 . . . . 3 . . . . 2 . Database Lockouts 1 | . . . . . . . . . . . . . . 1 . . . . . . . . . . . Manual 142 | . 25 . 1 . 21 11 11 . 19 . . . . 27 . . 1 . 14 . . . . 11 1 Terminals 177 | . 24 . . . 21 9 19 . 20 . . . . 35 . . . . 20 6 . . 5 14 4 Fabricators 19 | . . . . . . . . . 7 . . . . 12 . . . . . . . . . . . Repair Stations . | . . . . . . . . . . . . . . . . . . . . . . . . . . Recycling Units 36 | . 2 . . . 2 3 12 . 3 . . . . 4 . . . . . . . . . 10 . Scanalyzers 15 | . . . . . 2 . . . 5 . . . . 2 . . . . 3 . . . . 3 . Garrison Access 15 | . . . . . 1 2 . . 5 . . . . 1 . . . . 2 . . . . 3 1 Terminal Hacks 118 | . 3 . 1 . 2 3 5 8 3 . 1 33 . 10 . 2 6 . 8 7 1 17 5 2 1 Record 41 | . . . . . . . . 8 . . . 11 . . . 1 5 . . 6 . 5 5 . . Part Schematic 17 | . . . . . . . . . . . . 13 . . . . . . . . . 4 . . . Robot Schematic 6 | . . . . . . . . . . . . 6 . . . . . . . . . . . . . Robot Analysis 10 | . 3 . . . 1 . 2 . . . . . . . . . . . . . . 4 . . . Prototype ID Bank 10 | . . . . . . . 2 . . . . 3 . . . . . . 1 . . 4 . . . Open Door 6 | . . . . . . 1 . . . . 1 . . . . 1 1 . . 1 1 . . . . Open DSF 1 | . . . . . . . . . . . . . . . . . . . . . . . . 1 . Branch Access Points 1 | . . . . . . . . . . . . . . . . . . . 1 . . . . . . Emergency Access Points 1 | . . . . . . . . . . . . . . . . . . . 1 . . . . . . Alert Level 4 | . . . . . . . . . 1 . . . . 1 . . . . 2 . . . . . . Unreport Threat 12 | . . . . . 1 2 1 . 1 . . . . 3 . . . . 2 . . . . 1 1 Locate Traps 4 | . . . . . . . . . . . . . . 3 . . . . 1 . . . . . . Transport Status 1 | . . . . . . . . . . . . . . 1 . . . . . . . . . . . Hauler Manifests 1 | . . . . . . . . . 1 . . . . . . . . . . . . . . . . Registered Prototypes 1 | . . . . . . . . . . . . . . 1 . . . . . . . . . . . Zone Layout 1 | . . . . . . . . . . . . . . 1 . . . . . . . . . . . Proto ID Catalog 1 | . . . 1 . . . . . . . . . . . . . . . . . . . . . . Fabricator Hacks 6 | . . . . . . . . . 1 . . . . 5 . . . . . . . . . . . Network Status 1 | . . . . . . . . . 1 . . . . . . . . . . . . . . . . Load Schematic 3 | . . . . . . . . . . . . . . 3 . . . . . . . . . . . Build 2 | . . . . . . . . . . . . . . 2 . . . . . . . . . . . Repair Station Hacks . | . . . . . . . . . . . . . . . . . . . . . . . . . . Recycling Unit Hacks 22 | . 2 . . . 1 2 8 . 3 . . . . 2 . . . . . . . . . 4 . Report Inventory 16 | . 1 . . . 1 1 6 . 2 . . . . 2 . . . . . . . . . 3 . Retrieve Components 6 | . 1 . . . . 1 2 . 1 . . . . . . . . . . . . . . 1 . Scanalyzer 6 | . . . . . 1 . . . 3 . . . . 1 . . . . . . . . . 1 . Retrieve Study 6 | . . . . . 1 . . . 3 . . . . 1 . . . . . . . . . 1 . Garrison Access Hacks 8 | . . . . . 1 . . . 1 . . . . 1 . . . . 2 . . . . 2 1 Seal Access 8 | . . . . . 1 . . . 1 . . . . 1 . . . . 2 . . . . 2 1 Unauthorized Hacks 49 | . 7 . . . 10 1 2 . 10 . . . . 13 . . . . 3 . . . . 2 1 Terminals 40 | . 7 . . . 9 1 2 . 6 . . . . 9 . . . . 3 . . . . 2 1 Assimilate 1 | . 1 . . . . . . . . . . . . . . . . . . . . . . . . Botnet 17 | . 2 . . . 3 1 2 . 2 . . . . 3 . . . . 1 . . . . 2 1 Disrupt 1 | . . . . . . . . . . . . . . 1 . . . . . . . . . . . Operators 1 | . . . . . . . . . . . . . . . . . . . 1 . . . . . . Skim 20 | . 4 . . . 6 . . . 4 . . . . 5 . . . . 1 . . . . . . Fabricators 7 | . . . . . . . . . 4 . . . . 3 . . . . . . . . . . . Report 2 | . . . . . . . . . 1 . . . . 1 . . . . . . . . . . . Prioritize 1 | . . . . . . . . . . . . . . 1 . . . . . . . . . . . Liberate 1 | . . . . . . . . . 1 . . . . . . . . . . . . . . . . Fabnet 2 | . . . . . . . . . 1 . . . . 1 . . . . . . . . . . . Haulers 1 | . . . . . . . . . 1 . . . . . . . . . . . . . . . . Repair Stations . | . . . . . . . . . . . . . . . . . . . . . . . . . . Recycling Units 2 | . . . . . 1 . . . . . . . . 1 . . . . . . . . . . . Reject 2 | . . . . . 1 . . . . . . . . 1 . . . . . . . . . . . Scanalyzers . | . . . . . . . . . . . . . . . . . . . . . . . . . . Garrison Access . | . . . . . . . . . . . . . . . . . . . . . . . . . . Data Cores Recovered 7 | . 1 . . . 1 . . . 1 . . . . 2 . . . . . . . . . 2 . Used 2 | . . . . . . . . . 1 . . . . . . . . . . . . . . 1 . Hacking Detections 67 | . 7 . . . 10 4 11 . 14 . . . . 12 . . . . 4 . . . . 4 1 Full Trace Events 7 | . . . . . . 1 2 . . . . . . 3 . . . . . . . . . 1 . Feedback Events . | . . . . . . . . . . . . . . . . . . . . . . . . . . Feedback Blocked . | . . . . . . . . . . . . . . . . . . . . . . . . . . Robot Schematics Acquired 6 | . . . . . . . . . . . . 6 . . . . . . . . . . . . . Robots Built . | . . . . . . . . . . . . . . . . . . . . . . . . . . Authchips . | . . . . . . . . . . . . . . . . . . . . . . . . . . Time . | . . . . . . . . . . . . . . . . . . . . . . . . . . Total Robot Build Rating . | . . . . . . . . . . . . . . . . . . . . . . . . . . Part Schematics Acquired 17 | . . . . . . . . . . . . 13 . . . . . . . . . 4 . . . Parts Built 2 | . . . . . . . . . . . . . . 2 . . . . . . . . . . . Authchips . | . . . . . . . . . . . . . . . . . . . . . . . . . . Time 142 | . . . . . . . . . . . . . . 142 . . . . . . . . . . . Total Part Build Rating 13 | . . . . . . . . . . . . . . 13 . . . . . . . . . . . Part Studies Acquired 6 | . . . . . 1 . . . 3 . . . . 1 . . . . . . . . . 1 . Parts Repaired . | . . . . . . . . . . . . . . . . . . . . . . . . . . Time . | . . . . . . . . . . . . . . . . . . . . . . . . . . Parts Recycled . | . . . . . . . . . . . . . . . . . . . . . . . . . . Recycled Matter . | . . . . . . . . . . . . . . . . . . . . . . . . . . Retrieved Matter . | . . . . . . . . . . . . . . . . . . . . . . . . . . Retrieved Components 31 | . 10 . . . . 9 6 . 3 . . . . . . . . . . . . . . 3 . Parts Scanalyzed . | . . . . . . . . . . . . . . . . . . . . . . . . . . Part Schematics Acquired . | . . . . . . . . . . . . . . . . . . . . . . . . . . Parts Damaged . | . . . . . . . . . . . . . . . . . . . . . . . . . . Bothacking | -11 -10 -10 -10 -9 -8 -8 -8 -8 -6 -6 -6 -6 -5 -5 -5 -5 -5 -4 -4 -4 -4 -4 -3 -3 -2 ------------ Run | Yrd Mat Min Exi Min Mat Sto Rec Scr Fac Low Low Dat Pro Fac Upp Upp War Pro Fac Upp Upp Zhi Pro Res Res Used RIF Installer . | . . . . . . . . . . . . . . . . . . . . . . . . . . Robots Hacked 16 | . . . . . . . . . . . . . 1 2 4 1 4 . 3 . 1 . . . . Non-combat . | . . . . . . . . . . . . . . . . . . . . . . . . . . Combat 16 | . . . . . . . . . . . . . 1 2 4 1 4 . 3 . 1 . . . . Robot Hacks Applied . | . . . . . . . . . . . . . . . . . . . . . . . . . . Relay Couplers Released . | . . . . . . . . . . . . . . . . . . . . . . . . . . Fabnet Peak Effective % 4 | . . . . . . . . . . . . . 3 3 3 3 3 4 4 4 4 4 1 1 . Autooverrided 16 | . . . . . . . . . . . . . 1 2 4 1 4 . 3 . 1 . . . . Robots Rewired . | . . . . . . . . . . . . . . . . . . . . . . . . . . Allies Hacked . | . . . . . . . . . . . . . . . . . . . . . . . . . . Hacks Repelled . | . . . . . . . . . . . . . . . . . . . . . . . . . . Allies | -11 -10 -10 -10 -9 -8 -8 -8 -8 -6 -6 -6 -6 -5 -5 -5 -5 -5 -4 -4 -4 -4 -4 -3 -3 -2 -------- Run | Yrd Mat Min Exi Min Mat Sto Rec Scr Fac Low Low Dat Pro Fac Upp Upp War Pro Fac Upp Upp Zhi Pro Res Res Total Allies 16 | . . . . . . . . . . . . . 1 2 4 1 4 . 3 . 1 . . . . Largest Group 2 | . . . . . . . . . . . . . . 1 2 1 2 . 1 . . . . . . Highest-Rated Group 108 | . . . . . . . . . . . . . . 29 24 41 108 . 53 . . . . . . Highest-Rated Ally 54 | . . . . . . . . . . . . . . 29 12 41 54 . 53 . . . . . . Total Orders . | . . . . . . . . . . . . . . . . . . . . . . . . . . Ally Attacks 29 | . . . . . . . . . . . . . 1 7 10 5 3 . 3 . . . . . . Total Damage 434 | . . . . . . . . . . . . . 18 58 68 150 48 . 92 . . . . . . Kills . | . . . . . . . . . . . . . . . . . . . . . . . . . . Allies Corrupted . | . . . . . . . . . . . . . . . . . . . . . . . . . . Allies Melted 4 | . . . . . . . . . . . . . . . . . 1 . . . . . . . 3 Intel | -11 -10 -10 -10 -9 -8 -8 -8 -8 -6 -6 -6 -6 -5 -5 -5 -5 -5 -4 -4 -4 -4 -4 -3 -3 -2 ------- Run | Yrd Mat Min Exi Min Mat Sto Rec Scr Fac Low Low Dat Pro Fac Upp Upp War Pro Fac Upp Upp Zhi Pro Res Res Active Infowar (turns) 40152 | 13 2029 1023 337 1362 2589 880 1186 1246 2610 1675 1443 149 1365 3229 1637 2071 943 1393 2348 1676 1680 238 1895 3168 1967 Optics 1 | . . . . . . . . . . . . . . . . . 1 . . . . . . . . Sensors 2 | . . . . . . . . . . . . . . . . . . . 2 . . . . . . Terrain 39416 | 13 2029 1023 337 1362 2589 880 1186 1246 2610 1675 1443 149 1365 3229 1637 2071 943 1393 2348 1676 1680 238 1895 3026 1373 Decoding 6033 | . . . . . . . . . . . 614 149 1365 3229 676 . . . . . . . . . . Jamming 18336 | . . . . . . . . . . . . . . . 960 2071 943 1393 2348 1676 1680 235 1895 3168 1967 Robot Analysis Total 10 | . 3 . . . 1 . 2 . . . . . . . . . . . . . . 4 . . . Derelict Logs Recovered 14 | . . 3 . 1 . . . . . 2 1 . 1 . 2 2 . 1 . . 1 . . . . Drone Launches . | . . . . . . . . . . . . . . . . . . . . . . . . . . Drone Recoveries . | . . . . . . . . . . . . . . . . . . . . . . . . . . Decoded 0b10 Intel 27 | . . . . . . . . . . . . . . 27 . . . . . . . . . . . Traps 25 | . . . . . . . . . . . . . . 25 . . . . . . . . . . . Garrisons 2 | . . . . . . . . . . . . . . 2 . . . . . . . . . . . Exploration | -11 -10 -10 -10 -9 -8 -8 -8 -8 -6 -6 -6 -6 -5 -5 -5 -5 -5 -4 -4 -4 -4 -4 -3 -3 -2 ------------- Run | Yrd Mat Min Exi Min Mat Sto Rec Scr Fac Low Low Dat Pro Fac Upp Upp War Pro Fac Upp Upp Zhi Pro Res Res Turns Passed 40450 | 287 2029 1023 337 1362 2609 880 1186 1246 2614 1675 1443 149 1365 3229 1637 2071 943 1393 2348 1676 1680 238 1895 3168 1967 Spaces Moved 19793 | 50 1038 533 209 552 1435 371 671 725 1466 706 688 96 687 1593 735 1015 525 674 1039 900 859 135 926 1319 846 Core 11 | 11 . . . . . . . . . . . . . . . . . . . . . . . . . Treads 19611 | 39 1038 533 209 552 1264 371 671 725 1466 706 688 96 687 1593 735 1015 525 674 1039 900 859 135 926 1319 846 Legs . | . . . . . . . . . . . . . . . . . . . . . . . . . . Wheels . | . . . . . . . . . . . . . . . . . . . . . . . . . . Hover . | . . . . . . . . . . . . . . . . . . . . . . . . . . Flight 171 | . . . . . 171 . . . . . . . . . . . . . . . . . . . . Fastest Speed 27 | 50 160 160 160 160 27 165 167 170 152 156 156 156 156 160 170 170 170 170 170 170 170 170 170 170 170 Average Speed 165 | 141 160 160 160 160 150 166 167 170 156 156 156 156 156 169 170 170 170 170 170 170 170 170 170 173 179 Slowest Speed 225 | 160 160 160 160 160 170 167 170 170 170 156 156 156 160 170 170 170 170 170 170 170 170 170 170 180 225 Overloaded Moves . | . . . . . . . . . . . . . . . . . . . . . . . . . . Propulsion Burnouts . | . . . . . . . . . . . . . . . . . . . . . . . . . . Robots Hopped . | . . . . . . . . . . . . . . . . . . . . . . . . . . Potential Cave-ins 9 | . . . . . 4 . . . . . . . . . . . . . . . . . . . 5 Cave-ins Triggered 1 | . . . . . . . . . . . . . . . . . . . . . . . . 1 . Exploration Rate (%) 74 | 4 99 95 60 97 89 68 97 52 41 86 95 73 88 51 91 97 88 91 39 94 95 61 97 58 38 Regions Visited 25 Branch Regions 18 Pre-discovered Areas 8 | . . 1 . . . . . . . . 1 1 1 1 . . . . . . . 3 . . . Known Exits Taken 21 | . . . 1 . 1 1 1 1 1 1 1 1 1 1 1 1 1 1 1 1 1 1 1 1 . Unknown Exits Taken 4 | 1 1 1 . 1 . . . . . . . . . . . . . . . . . . . . . Scrap Searched 33 | . . 1 . 3 . . . 3 . 3 3 . 3 . 3 2 . 2 . 4 5 . 1 . . Spaces Dug 270 | . . . . 2 2 3 . . 12 7 5 . . 12 7 . . . 121 . . . . 70 29 Terrain Destroyed 2158 | . 96 34 . 16 187 71 18 . 41 73 33 . 27 278 80 70 9 40 554 27 49 . 65 248 142 Melee . | . . . . . . . . . . . . . . . . . . . . . . . . . . Projectile 1277 | . . . . 16 92 45 9 . 41 73 33 . 27 95 69 70 9 40 127 27 49 . 65 248 142 AOE 881 | . 96 34 . . 95 26 9 . . . . . . 183 11 . . . 427 . . . . . . Terrain Rammed . | . . . . . . . . . . . . . . . . . . . . . . . . . . Walls Destroyed . | . . . . . . . . . . . . . . . . . . . . . . . . . . Machines Disabled . | . . . . . . . . . . . . . . . . . . . . . . . . . . Actions | -11 -10 -10 -10 -9 -8 -8 -8 -8 -6 -6 -6 -6 -5 -5 -5 -5 -5 -4 -4 -4 -4 -4 -3 -3 -2 --------- Run | Yrd Mat Min Exi Min Mat Sto Rec Scr Fac Low Low Dat Pro Fac Upp Upp War Pro Fac Upp Upp Zhi Pro Res Res Total 27551 | 211 1233 679 214 1031 1887 637 735 739 1796 1280 1059 95 978 2141 1133 1370 577 931 1662 1054 1087 143 1259 2270 1350 Wait 5062 | 123 52 128 . 462 229 169 31 . 200 495 327 . 232 288 334 288 14 186 333 105 182 . 258 504 122 Move 19768 | 49 1037 532 208 551 1434 370 670 724 1465 705 687 95 686 1592 734 1014 524 673 1038 899 858 134 925 1318 846 Hop . | . . . . . . . . . . . . . . . . . . . . . . . . . . Pick Up 56 | . 2 . . 2 5 4 1 2 2 1 3 . . 15 1 3 2 3 5 1 1 . . 2 1 Fast Attach 112 | 7 7 . 1 . 15 2 3 2 13 2 . . 1 18 . . 6 1 9 2 1 5 . 11 6 Attach 18 | . 1 . . 1 5 . . . 1 . 2 . . 4 1 . . 2 . . . . . 1 . Detach 28 | . 3 . . . 6 1 . . 3 . 2 . . 7 1 . 2 2 1 . . . . . . Swap 34 | . 1 . . 1 10 3 1 1 6 . . . . 3 . . . . 1 . . . . 4 3 Drop 153 | . 5 . 5 1 18 7 5 4 18 3 1 . 2 31 1 2 7 3 13 3 2 4 . 13 5 Fire 1688 | 32 108 15 . 12 123 58 7 . 69 50 28 . 37 130 47 42 18 40 182 29 31 . 61 313 256 Melee . | . . . . . . . . . . . . . . . . . . . . . . . . . . Ram . | . . . . . . . . . . . . . . . . . . . . . . . . . . Kick . | . . . . . . . . . . . . . . . . . . . . . . . . . . Crush 1 | . . . . . 1 . . . . . . . . . . . . . . . . . . . . Escape Stasis 12 | . . . . . . . . . . . . . . . . . . . . . . . . 3 9 Rewire 5 | . . . . . . . . . . . . . . . . 3 . . . 2 . . . . . Trap . | . . . . . . . . . . . . . . . . . . . . . . . . . . Miscellaneous 614 | . 17 4 . 1 41 23 17 6 19 24 9 . 20 53 14 18 4 21 80 13 12 . 15 101 102 Route ------- -11/Scrapyard -10/Materials (discovered 6 exits: [*Mat x3] / [*Min x2] / [*Sub]) -10/Mines (discovered 4 exits: [*Mat x2] / *Exi / [Sub]) -10/Exiles (discovered 2 exits: *Min x2) -9/Mines (discovered 2 exits: *Mat x2) -8/Materials (discovered 5 exits: *Fac x3 / *Sto x2) -8/Storage (discovered 2 exits: *Fac / *Rec) -8/Recycling (discovered 2 exits: *Fac / *Scr) -8/Scraptown -6/Factory (discovered 4 exits: Fac / *Low x2 / [Ext]) -6/Lower Caves -6/Lower Caves (discovered 2 exits: *Fac / *Dat) -6/Data Miner -5/Proximity Caves -5/Factory (discovered 6 exits: *Fac x4 / *Upp x2) -5/Upper Caves -5/Upper Caves (discovered 2 exits: *Fac / *War) -5/Warlord -4/Proximity Caves -4/Factory (discovered 4 exits: *Res x2 / *Upp x2) -4/Upper Caves -4/Upper Caves (discovered 2 exits: *Res / *Zhi) -4/Zhirov -3/Proximity Caves -3/Research (discovered 4 exits: *Res x2 / *Arm / *Tes) -2/Research (discovered 2 exits: *Acc / [Qua]) History --------- Turn | Location | Event 1 | -11/Scrapyard | Upgraded with Propulsion slot (x1) 1 | -11/Scrapyard | Upgraded with Utility slot (x2) 1 | -11/Scrapyard | Upgraded with Weapon slot (x1) 8 | -11/Scrapyard | Discovered new exit (range 14) 288 | -11/Scrapyard | Entered Materials 289 | -10/Materials | Met a group of wandering Federalists 315 | -10/Materials | Build established: Mutant 349 | -10/Materials | Discovered new exit (range 12) 559 | -10/Materials | Discovered new exit (range 13) 627 | -10/Materials | Discovered new exit (range 16) 836 | -10/Materials | Discovered new exit (range 16) 1211 | -10/Materials | Discovered new exit (range 15) 1390 | -10/Materials | Reached level 2 1438 | -10/Materials | Upgraded with Weapon slot (x1) 1549 | -10/Materials | Discovered new exit (range 15) 1761 | -10/Materials | Build established: Gunner 1991 | -10/Materials | Reached level 3 2047 | -10/Materials | Upgraded with Utility slot (x1) 2317 | -10/Materials | Entered Mines 2378 | -10/Mines | Discovered new exit (range 15) 2503 | -10/Mines | Learned Materials terminal intel 2512 | -10/Mines | Discovered new exit (range 11) 2711 | -10/Mines | Learned location of Storage (-8) 2716 | -10/Mines | Discovered new exit (range 15) 2809 | -10/Mines | Deemed a non-threat by the Exiles lab entrance 2848 | -10/Mines | Reached level 4 3030 | -10/Mines | Learned Materials garrison access intel 3145 | -10/Mines | Discovered new exit (range 5) 3340 | -10/Mines | Entered Exiles 3341 | -10/Exiles | Identified exit to Mines 3379 | -10/Exiles | Met 8R-AWN 3408 | -10/Exiles | Met EX-HEX 3456 | -10/Exiles | Met EX-BIN 3475 | -10/Exiles | Aligned with FarCom system 3476 | -10/Exiles | Given EX-Vault access code 3513 | -10/Exiles | Opened EX-Vault 3521 | -10/Exiles | Upgraded with Weapon slot (x1) 3526 | -10/Exiles | Found XL Autogun Array 3559 | -10/Exiles | Warned to stay clear of 0b10 Research branches 3604 | -10/Exiles | Met EX-DEC 3677 | -10/Exiles | Left Exiles lab with XL Autogun Array 3677 | -10/Exiles | Entered Mines 3717 | -9/Mines | Discovered new exit (range 15) 3723 | -9/Mines | Assembled infested the area 3967 | -9/Mines | Build established: Skirmisher 4204 | -9/Mines | Learned 4 Materials zone layouts 4293 | -9/Mines | Found a hidden stash of uninstalled traps 4408 | -9/Mines | Discovered new exit (range 16) 5003 | -9/Mines | Reached level 5 5038 | -9/Mines | Upgraded with Utility slot (x1) 5039 | -9/Mines | Entered Materials 5040 | -8/Materials | Identified exit to Factory 5041 | -8/Materials | Loaded intel: 12 terminal locations 5041 | -8/Materials | Reached level 6 5042 | -8/Materials | Loaded intel: 1 garrison access location 5052 | -8/Materials | Upgraded with Utility slot (x1) 5182 | -8/Materials | Discovered new exit (range 16) 5317 | -8/Materials | Met 7R-MNS 5385 | -8/Materials | Reached level 7 5561 | -8/Materials | Upgraded with Utility slot (x1) 5592 | -8/Materials | Reached level 8 5596 | -8/Materials | Upgraded with Power slot (x1) 5596 | -8/Materials | Upgraded with Propulsion slot (x1) 5694 | -8/Materials | Build established: Scavenger-Skirmisher 5766 | -8/Materials | Learned Storage emergency access door positions 5834 | -8/Materials | Identified exit to Storage 5893 | -8/Materials | Learned Storage emergency access door positions 5943 | -8/Materials | Learned location of 1 exit from Lower Caves 5983 | -8/Materials | Learned Factory security intel 6087 | -8/Materials | Learned Factory security intel 6375 | -8/Materials | Discovered exit to Factory (range 16) 6416 | -8/Materials | Reached level 9 6457 | -8/Materials | Build established: Skirmisher 6763 | -8/Materials | Discovered exit to Factory (range 15) 6792 | -8/Materials | Upgraded with Propulsion slot (x1) 7439 | -8/Materials | First assault squad dispatched 7539 | -8/Materials | Reached level 10 7648 | -8/Materials | Entered Storage 7705 | -8/Storage | Reached level 11 7846 | -8/Storage | Met 01-MTF 8117 | -8/Storage | Reached level 12 8118 | -8/Storage | Upgraded with Utility slot (x1) 8189 | -8/Storage | Murdered 01-MTF 8392 | -8/Storage | System corruption reached 10% 8476 | -8/Storage | Discovered new exit (range 8) 8481 | -8/Storage | Used back door to open Recycling access 8527 | -8/Storage | Identified exit to Recycling 8528 | -8/Storage | Entered Recycling 8529 | -8/Recycling | Identified exit to Factory 8658 | -8/Recycling | Scanned before Scraplab entrance 8966 | -8/Recycling | Reached level 13 8981 | -8/Recycling | Upgraded with Utility slot (x1) 9699 | -8/Recycling | Discovered new exit (range 9) 9699 | -8/Recycling | Entered Scraplab 9712 | -8/Recycling | Identified exit to Scraptown 9714 | -8/Recycling | Entered Scraptown 9714 | -8/Scraptown | System corruption cleaned by C-Scrubber 9949 | -8/Scraptown | Received an X-ray algorithm 9994 | -8/Scraptown | Heard Great Nut preacher, LISTEN AND RECITE! 10013 | -8/Scraptown | Build established: Gunner 10139 | -8/Scraptown | Visited Cave Peace 10225 | -8/Scraptown | Visited Shadow of the Wyrm 10414 | -8/Scraptown | Visited SPCMW 10448 | -8/Scraptown | Turned away by UFD registrar 10484 | -8/Scraptown | Visited Assassins FH 10530 | -8/Scraptown | Visited Red Mages 10960 | -8/Scraptown | Entered Factory 10962 | -6/Factory | Reached level 14 11164 | -6/Factory | Garrison activated, responded to threat 11363 | -6/Factory | Build established: Skirmisher 11488 | -6/Factory | Discovered new exit (range 12) 11493 | -6/Factory | Discovered new exit (range 13) 11536 | -6/Factory | Discovered new exit (range 15) 12249 | -6/Factory | Garrison activated, responded to threat 12271 | -6/Factory | Reached level 15 12272 | -6/Factory | Upgraded with Utility slot (x1) 12560 | -6/Factory | Build established: Gunner 12945 | -6/Factory | Reached level 16 12993 | -6/Factory | Destroyed 7 combat bots 13410 | -6/Factory | First assault squad dispatched 13549 | -6/Factory | Discovered new exit (range 16) 13572 | -6/Factory | Identified exit to Lower Caves 13574 | -6/Factory | Entered Lower Caves 13575 | -6/Lower Caves | Identified exit to Lower Caves 13576 | -6/Lower Caves | Reached level 17 13663 | -6/Lower Caves | Learned 12 Factory zone layouts 14300 | -6/Lower Caves | Attacked by a delusional Derelict stockpiling Unaware 14556 | -6/Lower Caves | Learned Factory emergency access door positions 14755 | -6/Lower Caves | Attracted the attention of an 0b10 outpost 15249 | -6/Lower Caves | Entered another Lower Caves area 15251 | -6/Lower Caves | Reached level 18 15404 | -6/Lower Caves | Discovered new exit (range 15) 15560 | -6/Lower Caves | Destroyed 7 combat bots 15582 | -6/Lower Caves | Identified exit to Factory 16461 | -6/Lower Caves | Discovered new exit (range 18) 16556 | -6/Lower Caves | Encountered a Warlord checkpoint 16558 | -6/Lower Caves | Identified exit to Data Miner 16692 | -6/Lower Caves | Entered Data Miner 16692 | -6/Data Miner | Discovered new exit (range 6) 16724 | -6/Data Miner | Identified exit to Proximity Caves 16742 | -6/Data Miner | Met Data Miner 16785 | -6/Data Miner | Learned location of Section 7 (-2) 16785 | -6/Data Miner | Acquired the access code to Warlord's prototype stash 16805 | -6/Data Miner | Received God Mode back door access code from Data Miner 16841 | -6/Data Miner | Entered Proximity Caves 16843 | -5/Proximity Caves | Reached level 19 17237 | -5/Proximity Caves | Reached level 20 17857 | -5/Proximity Caves | Discovered exit to Factory (range 9) 18067 | -5/Proximity Caves | Attracted the attention of an 0b10 outpost 18114 | -5/Proximity Caves | Destroyed 8 combat bots 18206 | -5/Proximity Caves | Entered Factory 18207 | -5/Factory | Identified exit to Upper Caves 18207 | -5/Factory | Identified exit to Factory 18208 | -5/Factory | Reached level 21 18212 | -5/Factory | Upgraded with Utility slot (x1) 18411 | -5/Factory | Fabricated Hvy. Siege Treads (x1) 18518 | -5/Factory | Build established: Hacker-Skirmisher 18838 | -5/Factory | Central database locked down 19243 | -5/Factory | Reached level 22 19452 | -5/Factory | Destroyed 8 combat bots 19523 | -5/Factory | Discovered exit to Factory (range 20) 19719 | -5/Factory | Loaded intel: 108 trap records 19734 | -5/Factory | Loaded intel: 54 interactive machine locations 19761 | -5/Factory | Learned location of 2 exits from Factory 19799 | -5/Factory | Learned Quarantine stockpile data 19801 | -5/Factory | Found Unknown Device 19801 | -5/Factory | Identified Launcher Loader 19848 | -5/Factory | Learned Testing terminal intel 19966 | -5/Factory | Found Hvy. Reflective Plating 20083 | -5/Factory | Destroyed 7 combat bots 20520 | -5/Factory | Fabricated Prc. Energy Filter (x1) 20769 | -5/Factory | Cargo convoy interrupted 20878 | -5/Factory | Found Prototype Processor 20878 | -5/Factory | Identified Exp. Core Analyzer 20886 | -5/Factory | Found Exp. Core Analyzer 20906 | -5/Factory | First assault squad dispatched 20996 | -5/Factory | Reached level 23 20997 | -5/Factory | Upgraded with Utility slot (x1) 21435 | -5/Factory | Entered Upper Caves 21436 | -5/Upper Caves | Identified exit to Upper Caves 21737 | -5/Upper Caves | Build established: Hacker-Gunner 21890 | -5/Upper Caves | Learned Factory emergency access door positions 22118 | -5/Upper Caves | Attracted the attention of an 0b10 base 22154 | -5/Upper Caves | Destroyed 11 combat bots 22786 | -5/Upper Caves | Learned Factory security intel 23072 | -5/Upper Caves | Entered another Upper Caves area 23082 | -5/Upper Caves | Discovered exit to Factory (range 17) 23156 | -5/Upper Caves | Entered a destroyed Warlord outpost 23546 | -5/Upper Caves | Attracted the attention of an 0b10 checkpoint 24038 | -5/Upper Caves | Learned 4 Factory zone layouts 24443 | -5/Upper Caves | Discovered new exit (range 18) 24689 | -5/Upper Caves | Learned Factory emergency access door positions 25026 | -5/Upper Caves | Attracted the attention of an 0b10 outpost 25042 | -5/Upper Caves | Reached level 24 25063 | -5/Upper Caves | Destroyed 9 combat bots 25141 | -5/Upper Caves | Identified exit to Warlord 25143 | -5/Upper Caves | Entered Warlord 25216 | -5/Warlord | Discovered new exit (range 14) 25452 | -5/Warlord | Met Warlord 25470 | -5/Warlord | Warlord's base attacked by MAIN.C 25512 | -5/Warlord | Opened Warlord's prototype stash 25520 | -5/Warlord | Found Prototype Reactor 25520 | -5/Warlord | Identified Vortex Chain Reactor 25525 | -5/Warlord | Found Prototype Device 25525 | -5/Warlord | Identified Exp. Phase Shifter 25534 | -5/Warlord | Found Prototype Hackware 25534 | -5/Warlord | Identified Ghost Barrier 25551 | -5/Warlord | Found Prototype Processor 25551 | -5/Warlord | Identified Spectral Analyzer 25555 | -5/Warlord | Found Prototype Device 25555 | -5/Warlord | Identified System Purifier 25820 | -5/Warlord | Warlord forces counterattacked 25837 | -5/Warlord | Spotted Striker 25850 | -5/Warlord | Destroyed Striker 25879 | -5/Warlord | Destroyed 9 combat bots 25881 | -5/Warlord | Lost 5 allies 26031 | -5/Warlord | Opened side exit 26081 | -5/Warlord | Identified exit to Proximity Caves 26086 | -5/Warlord | Entered Proximity Caves 26148 | -4/Proximity Caves | Attracted the attention of an 0b10 outpost 26413 | -4/Proximity Caves | Build established: Hacker-Skirmisher 26521 | -4/Proximity Caves | Reached level 25 26782 | -4/Proximity Caves | Ambushed by research squad 26865 | -4/Proximity Caves | Attracted the attention of an 0b10 checkpoint 26894 | -4/Proximity Caves | Learned 4 Research zone layouts 27200 | -4/Proximity Caves | Discovered exit to Factory (range 18) 27479 | -4/Proximity Caves | Entered Factory 27480 | -4/Factory | Identified exit to Upper Caves 27481 | -4/Factory | Identified exit to Research 27727 | -4/Factory | Found Prototype Processor 27727 | -4/Factory | Identified Exp. Melee Analysis Suite 28338 | -4/Factory | Reached level 26 28357 | -4/Factory | Garrison activated, responded to threat 28440 | -4/Factory | Destroyed 9 combat bots 28979 | -4/Factory | First assault squad dispatched 28986 | -4/Factory | Discovered exit to Research (range 13) 29413 | -4/Factory | Reached level 27 29683 | -4/Factory | Unchained authorized (QV-33N) 29702 | -4/Factory | Destroyed 10 combat bots 29827 | -4/Factory | Entered Upper Caves 29828 | -4/Upper Caves | Encountered a Warlord checkpoint 29970 | -4/Upper Caves | Attracted the attention of an 0b10 checkpoint 31005 | -4/Upper Caves | Attracted the attention of an 0b10 base 31029 | -4/Upper Caves | Identified exit to Upper Caves 31029 | -4/Upper Caves | Learned location of 1 exit from Upper Caves 31029 | -4/Upper Caves | Learned Armory trap positions 31029 | -4/Upper Caves | Learned Research emergency access door positions 31029 | -4/Upper Caves | Learned Research stockpile data 31029 | -4/Upper Caves | Learned Factory security intel 31029 | -4/Upper Caves | Learned Extension garrison access intel 31030 | -4/Upper Caves | Destroyed 7 combat bots 31459 | -4/Upper Caves | Spotted B-86 Titan 31465 | -4/Upper Caves | Destroyed B-86 Titan 31503 | -4/Upper Caves | Entered another Upper Caves area 31504 | -4/Upper Caves | Identified exit to Zhirov 31550 | -4/Upper Caves | Destroyed 10 combat bots 32161 | -4/Upper Caves | Encountered a Warlord checkpoint 32165 | -4/Upper Caves | Discovered exit to Research (range 11) 32478 | -4/Upper Caves | Learned Research emergency access door positions 32922 | -4/Upper Caves | Attacked by a delusional Derelict stockpiling parts 32984 | -4/Upper Caves | Attracted the attention of an 0b10 checkpoint 33023 | -4/Upper Caves | Destroyed 9 combat bots 33183 | -4/Upper Caves | Entered Zhirov 33183 | -4/Zhirov | Discovered new exit (range 3) 33214 | -4/Zhirov | Met Zhirov 33258 | -4/Zhirov | Learned location of Quarantine (-2) 33258 | -4/Zhirov | Learned location of Testing (-3) 33258 | -4/Zhirov | Learned location of Command (-1) 33274 | -4/Zhirov | Zhirov requested help retrieving the SGEMP Prototype 33301 | -4/Zhirov | Found Alien Artifact 33301 | -4/Zhirov | Identified Integrated Reactor 33301 | -4/Zhirov | Installed Integrated Reactor, increased core energy generation (+10) 33419 | -4/Zhirov | Identified exit to Proximity Caves 33421 | -4/Zhirov | Entered Proximity Caves 33421 | -3/Proximity Caves | Spotted B-86 Titan 33423 | -3/Proximity Caves | Reached level 28 33427 | -3/Proximity Caves | Destroyed B-86 Titan 34241 | -3/Proximity Caves | Received a Behemoth hack from an annoying Tinkerer 34730 | -3/Proximity Caves | Found DCF Scrap (13 items) 34752 | -3/Proximity Caves | Attracted the attention of an 0b10 base 34789 | -3/Proximity Caves | Destroyed 13 combat bots 34795 | -3/Proximity Caves | Learned Factory emergency access door positions 34795 | -3/Proximity Caves | Learned Factory garrison access intel 35181 | -3/Proximity Caves | Discovered exit to Research (range 20) 35211 | -3/Proximity Caves | Reached level 29 35216 | -3/Proximity Caves | Attracted the attention of an 0b10 checkpoint 35316 | -3/Proximity Caves | Entered Research 35501 | -3/Research | Unchained authorized (QV-33N) 35848 | -3/Research | Destroyed QV-33N 35867 | -3/Research | Found Prototype Device 35867 | -3/Research | Identified QV-33N's Drone Shield 36373 | -3/Research | Destroyed 9 combat bots 36413 | -3/Research | Discovered new exit (range 16) 36880 | -3/Research | Reached level 30 36880 | -3/Research | Upgraded with Utility slot (x1) 36943 | -3/Research | Destroyed 14 combat bots 37276 | -3/Research | Spotted B-86 Titan 37287 | -3/Research | Destroyed B-86 Titan 37316 | -3/Research | First assault squad dispatched 37466 | -3/Research | Destroyed 11 combat bots 37879 | -3/Research | Destroyed 9 combat bots 37904 | -3/Research | High security lockdown imminent 37934 | -3/Research | Discovered new exit (range 14) 37984 | -3/Research | High security lockdown engaged 38021 | -3/Research | Discovered new exit (range 8) 38025 | -3/Research | Identified exit to Armory 38035 | -3/Research | Identified exit to Testing 38048 | -3/Research | Destroyed 9 combat bots 38088 | -3/Research | Found Prototype Device 38088 | -3/Research | Identified Exp. Shield Generator 38106 | -3/Research | Spotted Executioner 38106 | -3/Research | Spotted Striker 38109 | -3/Research | Destroyed Striker 38111 | -3/Research | Destroyed Executioner 38145 | -3/Research | Reached level 31 38184 | -3/Research | Crushed by falling debris 38200 | -3/Research | Scanned by Researcher 38202 | -3/Research | Spotted Investigator 38202 | -3/Research | Destroyed Investigator 38232 | -3/Research | Destroyed 35 combat bots 38248 | -3/Research | Sterilization system engaged 38248 | -3/Research | Non-combat units ordered to evacuate 38348 | -3/Research | Combat units ordered to evacuate 38412 | -3/Research | Discovered new exit (range 20) 38483 | -3/Research | Identified exit to Research 38484 | -3/Research | Entered another Research area 38484 | -2/Research | Warlord forces began assault on 0b10 38594 | -2/Research | Research machine network offline 38612 | -2/Research | Reached level 32 38612 | -2/Research | Met up with Warlord 38905 | -2/Research | Borebot progress halted 39071 | -2/Research | Borebot progress halted 39138 | -2/Research | Borebot progress halted 39193 | -2/Research | Spotted Striker 39198 | -2/Research | Spotted Striker 39209 | -2/Research | Spotted Executioner 39227 | -2/Research | Destroyed 9 combat bots 39256 | -2/Research | Found Prototype Processor 39256 | -2/Research | Identified Exp. Targeting Computer 39459 | -2/Research | Spotted Striker 39463 | -2/Research | Destroyed Striker 39465 | -2/Research | Spotted Striker 39466 | -2/Research | Destroyed Striker 39507 | -2/Research | Spotted Executioner 39509 | -2/Research | Spotted Striker 39515 | -2/Research | Destroyed Executioner 39529 | -2/Research | Discovered new exit (range 20) 39529 | -2/Research | Core integrity fell below 50% 39533 | -2/Research | High security lockdown imminent 39538 | -2/Research | Destroyed Striker 39559 | -2/Research | Destroyed 8 combat bots 39579 | -2/Research | Discovered new exit (range 11) 39613 | -2/Research | High security lockdown engaged 39651 | -2/Research | Identified exit to Access 39804 | -2/Research | Spotted Investigator 39806 | -2/Research | Destroyed Investigator 39855 | -2/Research | Destroyed 9 combat bots 39927 | -2/Research | Spotted Executioner 39931 | -2/Research | Destroyed Executioner 39943 | -2/Research | Reached level 33 39977 | -2/Research | Destroyed 12 combat bots 39993 | -2/Research | Given Cave Seal Controls access code 40057 | -2/Research | Spotted Executioner 40062 | -2/Research | Destroyed Executioner 40124 | -2/Research | Spotted B-90 Cyclops 40129 | -2/Research | Destroyed B-90 Cyclops 40144 | -2/Research | Build established: Hacker-Gunner 40161 | -2/Research | Spotted Executioner 40162 | -2/Research | Destroyed Executioner 40201 | -2/Research | Spotted Executioner 40207 | -2/Research | Destroyed Executioner 40263 | -2/Research | Destroyed 10 combat bots 40315 | -2/Research | Spotted B-90 Cyclops 40332 | -2/Research | Spotted Striker 40337 | -2/Research | Destroyed Striker 40344 | -2/Research | Spotted Striker 40348 | -2/Research | Destroyed Striker 40369 | -2/Research | Destroyed 10 combat bots 40388 | -2/Research | Spotted Executioner 40399 | -2/Research | Spotted Investigator 40414 | -2/Research | Destroyed Executioner 40434 | -2/Research | Spotted Executioner 40441 | -2/Research | Core integrity fell below 20% 40451 | -2/Research | Destroyed by P-80 Master with Gamma Rifle Last Messages --------------- 40448_ M-36 Artificer unfolds itself. 40448_ Slug penetrates M-36 Artificer. 40448_ Penetrated by Slug. 40448_ I-47 Archangel distress signal jammed. 40448_ Slug penetrates Wall. 40448_ G-73 Enforcer destroyed. 40449_ Acquired 11 matter. 40449_ Acquired 19 matter. 40449_ I-47 Archangel distress signal jammed. 40449_ Penetrated by Slug. 40450_ Acquired 15 matter. 40450_ I-47 Archangel distress signal jammed. 40450_ G-73 Enforcer destroyed. 40451_ Acquired 15 matter. 40451_ P-80 Master destroyed. 40451_ Slug penetrates H-88 Terminator. 40451_ Penetrated by Slug. [Achievement: 75k Club] [Achievement: Punisher] [Achievement: Rambo] Map ----- +----------------------------------------------------+ | ?????????????????# # #"#!% ### | | ?????????????????# ######"##""### #### | | ?????????????????# " | | ?????????????????# *# | | ?????????????????# !+ | | ?????????????????# # *! | | ???????????????? """ """ #!!! | | ??????????????? """ g """ !###! | | ???????????????? """ """ !%]?## | | ???????????????? ?"""gi """ ! ?# | | ????????????????#?????"" ??" ""## | | ?????????????????????? ?? l ###! | | ?????????????????????? ???? ""T"" #### | | ?????????????????????? ????? """"" + | | ?????????????????????????????? ########### # | | ?????????????#???????????????? ??????????# # | | ?????????????# ???????????????#######???######## " | | ??+??????????? ????????????????????????# # " | | ?????????????###+###????????????????????# " # | | ?????????????? ??????????########?# # # | | ???????????????# C????????# #?# # # | | ???????????????# " m!????????# /#?# # # | | ???????????????? "%" =###?????# =[#?# # # | | ???????????????# i ? !!i/####### !!######+### # | | ???????????????# h%h#E%!%*!;; / =;#### # | | ???????????????# [mp=%!@%!%=## |=* "==[ / # | | ???????????????#######h#g!!!]=!%###+%%!!%!!%* # | | ??????????????????????=%!=%%]%=;## [!]%![==!% [# | | ?????????????????????#[#!=!!!![! %%/*!!%%= =[# | | ????????p????????????#!#!*=%%[%! !=! |!=%[ !*%" | | ?????????????????????#?##;#=%[=! "[% =%" | | ????????????+???????????!!=|%![! T"[ !+ | | ????????????????????????#[##=%*#;# "" # | | ????????????????????????#[#?[! # "## # | | ????????????????????????# #? + ##?"# | | ????????????????????????# #?] # #?? | | ?????????????????????????##?? # !#?? | | ????????????????????????????? ; #???] | | ????????????????????????????? # !! [ #???] | | ??????????????????????????????#;;; !! +???? | | ???????????????????????????????##; #???? | | ?????????????????????????????????# #???? | | ?????????????????????????????????? ???? | | ??????????????????????????????????##"### ## ????? | | ????????????????????????????????????##???????????? | | ?????????????????????????????????????????????????? | | ?????????????????????????????????????????????????? | | ?????????????????????????????????????????????????? | | ?????????????????????????????????????????????????? | | ?????????????????????????????????????????????????? | +----------------------------------------------------+ Best States ------------- Heat Dissipation 115 Coolant Potential 80 Energy Generation 65 Energy Capacity 700 Matter Stores 600 Matter Capacity 600 Sight Range 19 Robot Scan Range 18 Terrain Scan Range 20 Terrain Scan Density 410 Jamming Range 14 Additional Mass Support 9 Base Temperature (-) 200 Armor Coverage 825 Resistance: TH 25 Weapon Shielding 33 Weapon Cycling 25 Evasion (%) 72 Targeting Accuracy 16 Armor Integrity Analysis 40 Recoil Reduction 4 Matter Filtering 50 Kinecelleration 40 Salvage Targeting 3 Offensive Hacking 15 Defensive Hacking 30 Item Schematics ----------------- Combat Drone Bay | -6/Data Miner | Free Lgt. Regenerative Plating | -6/Data Miner | Free Cld. Gravmag System | -6/Data Miner | Free Prc. Energy Filter | -6/Data Miner | Free Hvy. Proton Missile Launcher | -6/Data Miner | Free Hvy. Siege Treads | -6/Data Miner | Free Lrn. Terrain Scanner | -6/Data Miner | Free Hardcell Cannon | -6/Data Miner | Free Lrn. Tractor Beam | -6/Data Miner | Free Imp. Linear Gravjet | -6/Data Miner | Free Hvy. Gauss Cannon | -6/Data Miner | Free Adv. Component Analysis Suite | -6/Data Miner | Free Biometal Medium Treads | -6/Data Miner | Free Assault Drone Bay | -4/Zhirov | Free Exp. Heat Sink | -4/Zhirov | Free Exp. Optical Array | -4/Zhirov | Free Imp. Arc Thrower | -4/Zhirov | Free Robot Schematics ------------------ B-48 Gladiator | -6/Data Miner | Free D-63 Destroyer | -6/Data Miner | Free S-27 Virus | -6/Data Miner | Free B-60 Warrior | -6/Data Miner | Free L-61 Swordsman | -6/Data Miner | Free I-47 Archangel | -6/Data Miner | Free Fabricated ------------ Hvy. Siege Treads | x1 | -5/Factory Prc. Energy Filter | x1 | -5/Factory Repaired ---------- Nothing Studied --------- Lgt. Nuclear Core | -8/Materials | Hacked Lgt. Angular Momentum Engine | -6/Factory | Hacked Med. Treads | -6/Factory | Hacked Fission Core | -6/Factory | Hacked Neutrino Core | -5/Factory | Hacked Hvy. Siege Treads | -3/Research | Hacked Alien Tech Used ----------------- Integrated Reactor Achievements -------------- 75k Club Boltbath Collateral Damage Into The Furnace Killing Spree Punisher Rambo Challenges ------------ None RPGLIKE | -11 -10 -10 -10 -9 -8 -8 -8 -8 -6 -6 -6 -6 -5 -5 -5 -5 -5 -4 -4 -4 -4 -4 -3 -3 -2 --------- Run | Yrd Mat Min Exi Min Mat Sto Rec Scr Fac Low Low Dat Pro Fac Upp Upp War Pro Fac Upp Upp Zhi Pro Res Res Levels Raised 32 | . 2 1 . 1 5 2 1 . 3 1 1 . 2 3 . 1 . 1 2 . . . 2 2 2 XP Earned 52300 | 3000 3385 1675 350 650 7930 3354 814 170 5159 1787 1188 316 2696 3842 577 623 442 1458 3160 375 407 105 1634 3429 3774 XP Spent 49440 | 2940 2600 . 1100 1400 7590 2725 2600 . 4485 1430 1470 . . 7600 . 1530 . 800 3325 355 . . 725 5270 1495 Upgrades 81 | 10 4 . 1 1 11 3 1 . 8 9 5 . . 4 . 3 . 1 5 4 . . 3 5 3 Power Slot 1 | . . . . . 1 . . . . . . . . . . . . . . . . . . . . Propulsion Slot 3 | 1 . . . . 2 . . . . . . . . . . . . . . . . . . . . Utility Slot 12 | 2 1 . . 1 2 1 1 . 1 . . . . 2 . . . . . . . . . 1 . Weapon Slot 3 | 1 1 . 1 . . . . . . . . . . . . . . . . . . . . . . Core Integrity 5 | . . . . . . . . . . . . . . . . . . . . 3 . . 1 . 1 Heat Dissipation 15 | 2 . . . . 1 . . . 1 1 4 . . . . 1 . . . 1 . . . 3 1 Matter Storage 6 | . 1 . . . . 1 . . 3 . . . . . . . . . 1 . . . . . . Mass Support 1 | . . . . . 1 . . . . . . . . . . . . . . . . . . . . Inventory Capacity 3 | 1 1 . . . . . . . . . 1 . . . . . . . . . . . . . . Sight Range 3 | . . . . . . . . . 1 . . . . . . . . . 1 . . . 1 . . Sensor Range 9 | . . . . . . . . . 1 8 . . . . . . . . . . . . . . . Terrain Scan Density 4 | 3 . . . . . . . . . . . . . . . . . . . . . . 1 . . Ranged Accuracy 7 | . . . . . 2 . . . . . . . . . . 2 . 1 2 . . . . . . Hack Attack % 3 | . . . . . 1 . . . . . . . . 1 . . . . . . . . . 1 . Hack Defense % 2 | . . . . . 1 . . . . . . . . 1 . . . . . . . . . . . KI Damage % 4 | . . . . . . 1 . . 1 . . . . . . . . . 1 . . . . . 1 Protomatter Created 12667 | . 124 28 . 6 382 246 220 . 522 634 212 . 324 809 66 518 165 356 1229 397 326 . 497 2876 2730 Integrity Restored 11928 | . 372 84 . 18 808 429 384 118 303 461 158 . 416 992 267 305 69 404 1508 251 172 . 243 1894 2272 Core 7439 | . 372 84 . 18 542 328 70 . 196 219 97 . 222 591 178 208 31 249 985 168 106 . 157 1247 1371 Parts 4489 | . . . . . 266 101 314 118 107 242 61 . 194 401 89 97 38 155 523 83 66 . 86 647 901 Protomatter Decayed 10661 | . . . . 5 240 92 83 63 414 499 103 . 291 435 59 257 650 149 485 159 250 . 389 1280 4758 Game ------ Seed ShiftMicroRouter Manual? 0 Play Time 07:11:08 Cumulative 150.7 hours Start 2025.11.22 @ 13:22:16 End 2025.11.22 @ 20:43:27 Sessions 1 Manual Loads 0 Difficulty Rogue Special Mode Winter2019/RPGLIKE Game No. 95 Rogue 95 Adventurer 0 Explorer 0 Win Type - Total 0 Types 0/0/0/0/0/0/0/0/0/0 Lore% 67 Gallery% 47 Achievement% 48 Wizard Run 0 Options --------- Layout 0 ASCII 0 Keyboard 0 Movement Mouse Keybinds 0 Fullscreen 2 Font 24/Smallcaps Map View 76x50 Zoom Use 0% Tactical HUD 1 Map Filters NONE Filters NONE Steam 1 RUN: 5af826d0-746a-4eb3-af80-a957d17dae40